{"text_format":"1","workbook":"xlsx","n_sheets":10,"sheets":["メニュー","結果","PC予想","PCフォーカス","マイ予想","サブ","開催地","取り込み","取り込み２","出走表取得"],"not_rendered":{"charts":0,"images":0,"macros":1,"external_links":0,"defined_names":0,"comments":0,"pivot_tables":0},"unopened":[],"bounds":{"document_bytes":16777216,"sheet_cells":100000,"rows_first":2000,"rows_last":500,"rows_between":2000,"halvings":0,"cell_chars":16384,"cell_head_chars":4096},"cells_cut":0,"cells_raw":0,"read":"whole","date_system":"1900"}

{"sheet":"メニュー","index":0,"n_rows":39,"n_cols":40,"rows_kept":39,"cut":false,"hidden":false,"merged":[[29,2,30,5],[29,6,29,13],[30,6,30,13],[1,33,1,39],[2,23,2,26],[2,28,2,31],[1,16,1,20],[7,2,7,7],[7,8,7,13],[4,2,4,7],[4,8,4,13],[5,2,5,7],[5,8,5,13],[6,2,6,7],[6,8,6,13],[10,2,10,13],[11,2,11,13],[2,2,2,5],[1,22,1,26],[1,28,1,31],[8,2,8,7],[8,8,8,13],[33,6,33,13],[35,6,35,13],[36,6,36,13],[32,2,32,13],[33,2,33,5],[34,2,34,5],[35,2,35,5],[36,2,36,5],[37,6,37,13],[38,6,38,13],[37,2,37,5],[38,2,38,5],[34,6,34,13]]}
[]
[null,null,null,null,null,null,null,null,null,null,null,null,null,null,null,null,"開催地情報",null,null,null,null,null,"PC予想",null,null,null,null,null,"マイ予想",null,null,null,null,"進入予想コース"]
[null,null,"2024-07-05",null,null,null,null,null,null,null,null,null,null,null,null,null,"日付","地名","番","日目","R",null,"信","予想フォーカス",null,null,null,null,"予想フォーカス",null,null,null,null,"固定",1,2,3,4,5,6]
[]
[null,null,"銀行名"]
[null,null,"加入者番号"]
[null,null,"暗証番号"]
[null,null,"認証用パスワード"]
[null,null,"投票用パスワード"]
[]
[null,null,"上記の情報はインターネットエクプロラーの環境が"]
[null,null,"残っている場合のみ記入してください"]
[]
[]
[]
[]
[]
[]
[]
[]
[]
[]
[]
[]
[]
[]
[]
[]
[]
[null,null,"注意",null,null,null,"平均スタートタイミング等"]
[null,null,null,null,null,null," （ - ） 表示の場合（0.3）に統一"]
[]
[null,null,"省略文字の説明"]
[null,null,"番",null,null,null,"開催地の番号"]
[null,null,"R",null,null,null,"レース"]
[null,null,"信",null,null,null,"予想フォーカスに対する自信度"]
[null,null,"固定",null,null,null,"進入固定"]
[null,null,"C",null,null,null,"コース"]
[null,null,"ST",null,null,null,"スタートタイミング"]

{"sheet":"結果","index":1,"n_rows":3,"n_cols":48,"rows_kept":3,"cut":false,"hidden":false,"merged":[[1,19,1,21],[1,22,1,24],[1,32,1,36],[1,8,1,14],[1,1,1,7],[1,41,1,47],[1,37,1,40],[2,37,2,40],[1,26,1,27],[1,29,1,30],[2,33,2,36]]}
[]
[null,"開催地情報",null,null,null,null,null,null,"選手情報",null,null,null,null,null,null,null,null,"平均","今節","全国勝率",null,null,"当地勝率",null,null,"M","モーター勝率",null,"B","ボート勝率",null,"簡易","PC予想",null,null,null,null,"マイ予想",null,null,null,"進入予コース想"]
[null,"日付","地名","番","日目","中止","R","C","氏名","登録番号","支部","出身地","等級","体重","年齢","F","L","ST","ST","勝率","２連率","３連率","勝率","２連率","３連率","番号","２連率","３連率","番号","2連率","3連率","得点","信","予想フォーカス",null,null,null,"予想フォーカス",null,null,null,"固定",1,2,3,4,5,6]

{"sheet":"PC予想","index":2,"n_rows":0,"n_cols":0,"rows_kept":0,"cut":false,"hidden":true,"merged":[]}

{"sheet":"PCフォーカス","index":3,"n_rows":0,"n_cols":0,"rows_kept":0,"cut":false,"hidden":true,"merged":[]}

{"sheet":"マイ予想","index":4,"n_rows":0,"n_cols":0,"rows_kept":0,"cut":false,"hidden":true,"merged":[]}

{"sheet":"サブ","index":5,"n_rows":71,"n_cols":60,"rows_kept":71,"cut":false,"hidden":true,"merged":[[0,20,0,21],[0,22,0,23],[0,24,0,25],[0,26,0,27],[0,1,0,4],[0,10,0,11],[0,12,0,13],[0,14,0,15],[0,16,0,17],[0,18,0,19]]}
[null,"投票用地名",null,null,null,null,null,null,null,null,"初日",null,"２日目",null,"３日目",null,"４日目",null,"５日目",null,"６日目",null,"７日目",null,"８日目",null,"９日目",null,null,null,null,null,44959.347222222219,null,"オッズ用","地番",null,null,1,null,null,null,null,null,null,4,{"$f":"VLOOKUP(AT1,AT2:AU13,2)","v":"selRaceNo04"},null,16,{"$f":"VLOOKUP(AW1,AW2:AX18,2)","v":"3単20倍以上　2複4個"},null,null,9,{"$f":"VLOOKUP($BA$1,$BA$2:$BH$11,2)","v":"計算"},{"$f":"VLOOKUP($BA$1,$BA$2:$BH$11,3)","v":89},{"$f":"VLOOKUP($BA$1,$BA$2:$BH$11,4)","v":90},{"$f":"VLOOKUP($BA$1,$BA$2:$BH$11,5)","v":91},{"$f":"VLOOKUP($BA$1,$BA$2:$BH$11,6)","v":92},{"$f":"VLOOKUP($BA$1,$BA$2:$BH$11,7)","v":93},{"$f":"VLOOKUP($BA$1,$BA$2:$BH$11,8)","v":94}]
[null,1,{"$f":"VLOOKUP(B2,B3:E26,2)","v":"01"},{"$f":"VLOOKUP(B2,B3:E26,3)","v":"桐 生"},{"$f":"VLOOKUP(B2,B3:E26,4)","v":"jyo01"},null,1,{"$f":"VLOOKUP(G2,G3:H9,2)","v":"３連単"},{"$f":"VLOOKUP(G2,G3:I6,3)","v":"３連複"},1,2,null,null,null,null,null,null,null,null,null,null,null,null,null,null,null,null,null,null,1," .02",null,null,null,null,null,null,null,1,"人気",null,null,"３連単","◎",null,1,"selRaceNo01",null,1,"オッズ表作成のみ",null,null,1,"なし"]
[null,1,"01","桐 生","jyo01",null,1,"３連単","３連複",2,1,null,null,null,null,null,null,null,null,null,null,null,null,null,null,null,null,null,null,2," .03",null,null,null,null,null,null,null,2,"倍率",null,null,"３連複","◎",null,2,"selRaceNo02",null,2,"3連複頭1以外投票",null,null,2,"マイ予想",4,5,6,7]
[null,2,"02","戸 田","jyo02",null,2,"３連複","３連単",3,null,null,null,null,null,null,null,null,null,null,null,null,null,null,null,null,null,null,null,3," .01",null,null,null,null,null,null,null,3,"人気・倍率",null,null,"２連単","◎",null,3,"selRaceNo03",null,3,"3連単オッズ　125　1番目投票",null,null,3,"虎の巻",10,11,12,13]
[null,3,"03","江戸川","jyo03",null,3,"２連単","２連複",4,2,null,null,null,null,null,null,null,null,null,null,null,null,null,null,null,null,null,null,4," .01",null,null,null,null,null,null,null,null,null,null,null,"２連複","◎",null,4,"selRaceNo04",null,4,"3連単オッズ　124　7番目投票",null,null,4,"①",24,25,26,27,28,29]
[null,4,"04","平和島","jyo04",null,4,"２連複","２連単",5,null,null,null,null,null,null,null,null,null,null,null,null,null,null,null,null,null,null,null,5," .09",null,null,null,null,null,null,null,null,null,null,null,"拡連複","◎",null,5,"selRaceNo05",null,5,"3連単オッズ　125　PC マイ投票",null,null,5,"②",33,34,35,36,37,38]
[null,5,"05","多摩川","jyo05",null,5,"拡連複",null,6,1,null,null,null,null,null,null,null,null,null,null,null,null,null,null,null,null,null,null,6," .27",null,null,null,null,null,null,null,null,null,null,null,"単勝","◎",null,6,"selRaceNo06",null,6,"3単2頭　1～5番人気投票",null,null,6,"③",42,43,44,45,46,47]
[null,6,"06","浜名湖","jyo06",null,6,"単勝",null,null,null,null,null,null,null,null,null,null,null,null,null,null,null,null,null,null,null,null,null,null,null,null,null,null,null,null,null,null,null,null,null,null,"複勝","◎",null,7,"selRaceNo07",null,7,"3単　124　7と11　同じなら投票",null,null,7,"④",51,52,53,54,55,56]
[null,7,"07","蒲 郡","jyo07",null,7,"複勝",null,null,1,2,3,4,5,6,null,10,8,6,4,2,1,null,null,null,null,null,null,null,null,null,null,null,null,null,null,null,null,null,null,null,null,null,null,8,"selRaceNo08",null,8,"3単1-2-3　3複4倍以上",null,null,8,"⑤",60,61,62,63,64,65]
[null,8,"08","常 滑","jyo08",null,null,null,null,1,{"$f":"COUNTIF($K$2:$AB$2,K9)","v":0},1,0,0,0,0,null,{"$f":"K10*R9","v":0},8,0,0,0,0,null,{"$f":"SUM(R10:X10)","v":8},null,{"$f":"SUM(K10:P10)","v":1},null,null,{"$f":"Y10/AA10","v":8},null,null,null,null,null,null,null,null,null,null,null,null,null,null,null,9,"selRaceNo09",null,9,"3単オッズ倍率　予想を投票",null,null,9,"計算",89,90,91,92,93,94]
[null,9,"09"," 津 ","jyo09",null,null,null,null,2,{"$f":"COUNTIF($K$3:$AB$3,K9)","v":1},0,0,0,0,0,null,{"$f":"K11*R9","v":10},0,0,0,0,0,null,10,null,{"$f":"SUM(K11:P11)","v":1},null,null,10,null,null,null,null,null,null,null,null,null,null,null,null,null,null,null,10,"selRaceNo10",null,10,"3単オッズ倍率　予想①の３複",null,null,10,"総合",144,145,146,147,148,149]
[null,10,"10","三 国","jyo10",null,2,{"$f":"VLOOKUP(G12,G13:H15,2)","v":"しない"},"初日",3,{"$f":"COUNTIF($K$4:$AB$4,K9)","v":0},0,0,0,0,0,null,{"$f":"K12*R9","v":0},0,0,0,0,0,null,0,null,0,null,null,{"$error":"#DIV/0!"},null,null,null,null,null,null,null,null,null,null,null,null,null,null,null,11,"selRaceNo11",null,11,"3単オッズ倍率　予想②の２複"]
[null,11,"11","びわこ","jyo11",null,1,"する",12,4,{"$f":"COUNTIF($K$5:$AB$5,K9)","v":0},1,0,0,0,0,null,{"$f":"K13*R9","v":0},8,0,0,0,0,null,8,null,1,null,null,8,null,null,null,null,null,null,null,null,null,null,null,null,null,null,null,12,"selRaceNo12",null,12,"3単オッズ倍率　予想①②と指定"]
[null,12,"12","住之江","jyo12",null,2,"しない","無し",5,{"$f":"COUNTIF($K$6:$AB$6,K9)","v":0},0,0,0,0,0,null,{"$f":"K14*R9","v":0},0,0,0,0,0,null,0,null,0,null,null,{"$error":"#DIV/0!"},null,null,null,null,null,null,null,null,null,null,null,null,null,null,null,null,null,null,13,"3単オッズ倍率　予想①②の２単"]
[null,13,"13","尼 崎","jyo13",null,3,null,null,6,{"$f":"COUNTIF($K$7:$AB$7,K9)","v":1},0,0,0,0,0,null,{"$f":"K15*R9","v":10},0,0,0,0,0,null,10,null,1,null,null,10,null,null,null,null,null,null,null,null,null,null,null,null,null,null,null,null,null,null,14,"3単オッズ倍率　予想最終3複"]
[null,14,"14","鳴 門","jyo14",null,null,null,null,null,null,null,null,null,null,null,null,null,null,null,null,null,null,null,null,null,null,null,null,null,null,null,null,null,null,null,null,null,null,null,null,null,null,null,null,null,null,null,15,"3単20倍以上　予想トラ"]
[null,15,"15","丸 亀","jyo15",null,null,null,null,null,null,null,null,null,null,null,null,null,null,null,null,null,null,null,null,null,null,null,null,null,null,null,null,null,null,null,null,null,null,null,null,null,null,null,null,null,null,null,16,"3単20倍以上　2複4個"]
[null,16,"16","児 島","jyo16",null,null,1,null,null,null,null,null,null,null,null,null,null,null,null,null,null,null,null,null,null,null,null,null,null,null,null,null,null,null,null,null,null,null,null,null,null,null,null,null,null,null,null,17,"2連複一番人気投票追い上げ"]
[null,17,"17","宮 島","jyo17"]
[null,18,"18","徳 山","jyo18",null,null,null,null,null,null,null,null,null,null,null,null,null,null,null,null,null,null,null,null,null,null,null,null,null,null,null,null,null,null,null,null,null,null,null,null,null,null,null,null,null,null,null,1,{"$f":"VLOOKUP(AW20,AW21:AX24,2)","v":"締め切り2分前"}]
[null,19,"19","下 関","jyo19",null,null,"出走表日付",null,null,null,null,null,null,null,null,null,null,null,null,null,null,null,null,null,null,null,null,null,null,null,null,null,null,null,null,null,null,null,null,null,null,null,null,null,null,null,null,1,"締め切り2分前"]
[null,20,"20","若 松","jyo20",null,null,"2024-07-01",null,null,null,null,null,null,null,null,null,null,null,null,null,null,null,null,null,null,null,null,null,null,null,null,null,null,null,null,null,null,null,null,null,null,null,null,null,null,null,null,2,"即、投票"]
[null,21,"21","芦 屋","jyo21",null,null,null,null,null,null,null,null,null,null,null,null,null,null,null,null,null,null,null,null,null,null,null,null,null,null,null,null,null,null,null,null,null,null,null,null,null,null,null,null,null,null,null,3]
[null,22,"22","福 岡","jyo22",null,null,null,null,null,null,null,null,null,null,null,null,null,null,null,null,null,null,null,null,null,null,null,null,null,null,null,null,null,null,null,null,null,null,null,null,null,null,null,null,null,null,null,4]
[null,23,"23","唐 津","jyo23",null,null,"2024-02-13T20:49:46"]
[null,24,"24","大 村","jyo24",null,null,null,null,null,null,null,null,null,null,null,null,null,null,null,null,null,null,null,null,null,null,null,null,null,null,null,null,null,null,null,null,null,null,null,null,null,null,null,null,null,null,null,1,"3連単②③の頭"]
[null,null,null,null,null,null,null,null,null,null,null,null,null,null,null,null,null,null,null,null,null,null,null,null,null,null,null,null,null,null,null,null,null,null,null,null,null,null,null,null,null,null,null,null,null,null,null,null,2,"？-？-？を探せ5点"]
[null,null,null,null,null,null,null,null,null,null,null,null,null,null,null,null,null,null,null,null,null,null,null,null,null,null,null,null,null,null,null,null,null,null,null,null,null,null,null,null,null,null,null,null,null,null,null,null,3,"？-？-？を2個と倍率探せ"]
[1,2,3,4,5,6,7,8,9,10,11,12,13,14,15,16,17,18,19,20,21,22,23,24,25,26,27,28,29,30,null,null,null,null,null,null,null,null,null,null,null,null,null,null,null,null,null,null,4,"？-？-？を探せBOX最高4点"]
[null,null,null,null,null,null,null,null,null,null,null,null,null,null,null,null,null,null,null,null,null,null,null,null,null,null,null,null,null,null,null,null,null,null,null,null,null,null,null,null,null,null,null,null,null,null,null,null,5,"？-？-？を探せ指定３連単のみ"]
[null,null,null,null,null,null,1,{"$f":"VLOOKUP(G31,G32:H33,2)","v":"投資モード"},null,null,null,null,null,null,null,null,null,null,null,null,null,null,null,null,null,null,null,null,null,null,null,null,null,null,null,null,null,null,null,null,null,null,null,null,null,null,null,null,6,"？-？-？を探せ虎マイ３連単"]
[null,2,{"$f":"VLOOKUP(B32,B33:C34,2)","v":"Microsoft Edge【マイクロソフトエッジ】"},{"$f":"VLOOKUP(B32,B33:D34,3)","v":"Edge"},null,null,1,"投資モード",null,null,null,null,null,null,null,null,null,null,null,null,null,null,null,null,null,null,null,null,null,null,null,null,null,null,null,null,null,null,null,null,null,null,null,null,null,null,"156で計算",456,7,"？-？-？を探せ予想4点3複","3連単と倍率を探す　見つかったら予想より　選択し　3連複BOXで投票"]
[null,1,"Google Chrome【グーグルクローム】","Chrome",null,null,2,"テストモード",null,null,null,null,null,null,null,null,null,null,null,null,null,null,null,null,null,null,null,null,null,null,null,null,null,null,null,null,null,null,null,null,null,null,null,null,null,null,"　",null,8,"？-？-？を探せ固定4点BOX3複"]
[null,2,"Microsoft Edge【マイクロソフトエッジ】","Edge",null,null,null,null,null,null,null,null,null,null,null,null,null,null,null,null,null,null,null,null,null,null,null,null,null,null,null,null,null,null,null,null,null,null,null,null,null,null,null,null,null,null,null,null,9,"？-？-？を探せ予想3単選ぶ"]
[null,null,null,null,null,null,2,{"$f":"VLOOKUP(G35,G36:H39,2)","v":"３連複"},null,null,null,null,null,null,null,null,null,null,null,null,null,null,null,null,null,null,null,null,null,null,null,null,null,null,null,null,null,null,null,null,null,null,null,null,null,null,null,null,10,"3連複1番人気最小","3連複1番人気最小を探す探査倍率　1と2の倍率を探し.1倍なら5番人気まで　1倍以上は3番人気まで投票"]
[null,null,null,null,null,null,1,"３連単",null,null,null,null,null,null,null,null,null,null,null,null,null,null,null,null,null,null,null,null,null,null,null,null,null,null,null,null,null,null,null,null,null,null,null,null,null,null,null,null,11,"3単倍率？3複"]
[null,null,1,{"$f":"VLOOKUP(C37,C38:D40,2)","v":"同じ"},null,null,2,"３連複",null,null,null,null,null,null,null,null,null,null,null,null,null,null,null,null,null,null,null,null,null,null,null,null,null,null,null,null,null,null,null,null,null,null,null,null,null,null,null,null,12,"3単倍率？3複BOX"]
[null,null,1,"同じ",null,null,3,"２連単"]
[null,null,2,"以外",null,null,4,"２連複"]
[null,null,3,"以上",null,null,null,null,null,null,null,null,null,null,null,null,null,null,null,null,null,null,null,null,null,null,null,null,null,null,null,null,null,null,null,null,null,null,null,null,null,null,null,null,null,null,null,null,6,"？-？-？を探せ虎マイ３連単"]
[null,null,null,null,null,null,2,{"$f":"VLOOKUP(G41,G42:H45,2)","v":"３連複"},null,1,{"$f":"COUNTIF($J$35:$L$39,J41)","v":0},null,{"$f":"K41+0.006","v":6.0000000000000001E-3},{"$f":"RANK(M41,$M$41:$M$46)","v":1},{"$f":"MATCH(J41,$N$41:$N$46,0)","v":1}]
[null,null,null,null,null,null,1,"３連単",null,2,{"$f":"COUNTIF($J$35:$L$39,J42)","v":0},null,{"$f":"K42+0.005","v":5.0000000000000001E-3},{"$f":"RANK(M42,$M$41:$M$46)","v":2},{"$f":"MATCH(J42,$N$41:$N$46,0)","v":2}]
[null,null,null,null,null,null,2,"３連複",null,3,0,null,{"$f":"K43+0.004","v":4.0000000000000001E-3},3,3,null,null,null,null,null,null,null,null,null,null,null,null,null,null,null,null,null,null,null,null,null,null,null,null,null,null,null,null,null,null,null,null,null,1,{"$f":"VLOOKUP(AW43,AW44:AX49,2)","v":"予想③を投票"},{"$f":"VLOOKUP(AW43,AW44:AY49,3)","v":"予想を取り込み"},{"$f":"VLOOKUP(AW43,AW44:AZ49,4)","v":"投票作成"}]
[null,null,null,null,null,null,3,"２連単",null,4,0,null,{"$f":"K44+0.003","v":3.0000000000000001E-3},4,4,null,null,null,null,null,null,null,null,null,null,null,null,null,null,null,null,null,null,null,null,null,null,null,null,null,null,null,null,null,null,null,null,null,1,"予想③を投票","予想を取り込み","投票作成"]
[null,null,null,null,null,null,4,"２連複",null,5,0,null,{"$f":"K45+0.002","v":2E-3},5,5,null,null,null,null,null,null,null,null,null,null,null,null,null,null,null,null,null,null,null,null,null,null,null,null,null,null,null,null,null,null,null,null,null,2,"自動投票の予想を投票"]
[null,null,null,null,null,null,null,null,null,6,0,null,{"$f":"K46+0.001","v":1E-3},6,6,null,null,null,null,null,null,null,null,null,null,null,null,null,null,null,null,null,null,null,null,null,null,null,null,null,null,null,null,null,null,null,null,null,3,"自動投票自分用を投票"]
[null,"C:\\Users\\ASUS\\AppData\\Local\\SeleniumBasic\\edgedriver.exe",null,null,null,null,null,null,null,null,null,null,null,null,null,null,null,null,null,null,null,null,null,null,null,null,null,null,null,null,null,null,null,null,null,null,null,null,null,null,null,null,null,null,null,null,null,null,4]
[null,null,null,null,null,null,null,null,null,null,null,null,null,null,null,null,null,null,null,null,null,null,null,null,null,null,null,null,null,null,null,null,null,null,null,null,null,null,null,null,null,null,null,null,null,null,null,null,5]
[null,null,null,null,null,null,null,null,null,null,null,null,null,null,null,null,null,null,null,null,null,null,null,null,null,null,null,null,null,null,null,null,null,null,null,null,null,null,null,null,null,null,null,null,null,null,null,null,6]
[null,3,{"$f":"VLOOKUP(B50,B51:D56,2)","v":"高速"},{"$f":"VLOOKUP(B50,B51:D56,3)","v":"00:00:03"},{"$f":"VLOOKUP(B50,B51:E56,4)","v":100},null,null,"追い上げ金","投票回数"]
[null,1,"超高速","00:00:01",30,null,null,0,0]
[null,2,"最高速","00:00:02",50,null,null,0,0]
[null,3,"高速","00:00:03",100]
[null,4,"中速","00:00:04",400]
[null,5,"低速","00:00:05",700,null,null,"残高確認",0]
[null,6,"最低速","00:00:06",900,null,null,"投資後金額",0]
[null,null,null,null,null,null,null,"差額金額",0]
[null,1,{"$f":"VLOOKUP(B58,B59:C67,2)","v":"しない"},null,{"$f":"VLOOKUP(B58,B59:E67,4)","v":0},null,null,"前回払戻",0]
[null,1,"しない",null,null,null,null,"今回払戻",0]
[null,2,"マーチンゲール1.2",null,1.2,null,null,"差額金額",0]
[null,3,"マーチンゲール1.3",null,1.3,null,null,null,0]
[null,4,"マーチンゲール1.4",null,1.4]
[null,5,"マーチンゲール1.5",null,1.5]
[null,6,"マーチンゲール1.8",null,1.8]
[null,7,"プラス"]
[null,8]
[null,9]
[null,null,null,null,null,null,3,{"$f":"VLOOKUP(G68,G69:H71,2)","v":"２連複"}]
[null,null,null,null,null,null,1,"３連複"]
[null,null,null,null,null,null,2,"２連単"]
[null,null,null,null,null,null,3,"２連複"]

{"sheet":"開催地","index":6,"n_rows":16,"n_cols":3,"rows_kept":16,"cut":false,"hidden":true,"merged":[]}
[]
["桐生",1,"初日"]
["江戸川",3,"４日目"]
["平和島",4,"２日目"]
["蒲郡",7,"４日目"]
["常滑",8,"初日"]
["びわこ",11,"２日目"]
["住之江",12,"最終日"]
["尼崎",13,"初日"]
["鳴門",14,"最終日"]
["児島",16,"４日目"]
["下関",19,"３日目"]
["芦屋",21,"４日目"]
["福岡",22,"４日目"]
["唐津",23,"２日目"]
["大村",24,"３日目"]

{"sheet":"取り込み","index":7,"n_rows":7,"n_cols":4,"rows_kept":7,"cut":false,"hidden":true,"merged":[]}
[]
[]
[]
[]
[]
[]
[null,null,null,"中止"]

{"sheet":"取り込み２","index":8,"n_rows":0,"n_cols":0,"rows_kept":0,"cut":false,"hidden":true,"merged":[]}

{"sheet":"出走表取得","index":9,"n_rows":0,"n_cols":0,"rows_kept":0,"cut":false,"hidden":true,"merged":[]}